fUST/lending_fUST_20250909
["ID","MTS","AMOUNT","RATE_DAILY","PERIOD"]
[384405232,1757385038161,-280.173572,0.00013598,2]
[384405233,1757385038181,-151.0,0.00013598,2]
[384405234,1757385038191,-280.173572,0.00013598,2]
[384405235,1757385038201,-280.173572,0.00013598,2]
[384405236,1757385038212,-151.0,0.00013598,2]
[384405237,1757385038222,-280.173572,0.00013598,2]
[384405238,1757385038232,-151.0,0.00013598,2]
[384405239,1757385038242,-151.0,0.00013598,2]
[384405240,1757385038252,-152.999587,0.00013598,2]
[384405241,1757385038261,-280.173572,0.00013598,2]
[384405242,1757385038272,-280.173572,0.00013598,2]
[384405243,1757385038282,-151.0,0.00013598,2]
[384405244,1757385038292,-151.0,0.00013598,2]
[384405245,1757385038302,-280.173572,0.00013598,2]
[384405246,1757385038311,-151.0,0.00013598,2]
[384405247,1757385038321,-151.0,0.00013598,2]
[384405248,1757385038329,-151.0,0.00013598,2]
[384405249,1757385038339,-151.0,0.00013598,2]
[384405250,1757385038348,-151.0,0.00013598,2]
[384405251,1757385038357,-228.65636,0.00013598,2]
[384405252,1757385038366,-187.915682,0.00013598,2]
[384405253,1757385038375,-187.915682,0.00013598,2]
[384405254,1757385038385,-187.915682,0.00013598,2]
[384405255,1757385038394,-187.915682,0.00013598,2]
[384405256,1757385038403,-187.915682,0.00013598,2]
[384405257,1757385038413,-187.915682,0.00013598,2]
[384405258,1757385038422,-187.915682,0.00013598,2]
[384405259,1757385038432,-187.915682,0.00013598,2]
[384405260,1757385038441,-187.915682,0.00013598,2]
[384405261,1757385038450,-187.915682,0.00013598,2]
[384405262,1757385038459,-187.915682,0.00013598,2]
[384405263,1757385038468,-187.915682,0.00013598,2]
[384405264,1757385038477,-187.915682,0.00013598,2]
[384405265,1757385038486,-187.915682,0.00013598,2]
[384405266,1757385038495,-187.915682,0.00013598,2]
[384405267,1757385038504,-187.915682,0.00013598,2]
[384405268,1757385038513,-187.915682,0.00013598,2]
[384405269,1757385038522,-187.915682,0.00013598,2]
[384405270,1757385038531,-187.915682,0.00013598,2]
[384405271,1757385038541,-187.915688,0.00013598,2]
[384405272,1757385038550,-818.799708,0.00013598,2]
[384405273,1757385038559,-818.799708,0.00013598,2]
[384405274,1757385038568,-818.799708,0.00013598,2]
[384405275,1757385038578,-818.799708,0.00013598,2]
[384405276,1757385038590,-151.0,0.00013598,2]
[384405277,1757385038599,-818.799708,0.00013598,2]
[384405278,1757385038609,-151.0,0.00013598,2]
[384405279,1757385038618,-818.799708,0.00013598,2]
[384405280,1757385038628,-151.0,0.00013598,2]
[384405281,1757385038637,-818.799708,0.00013598,2]
[384405282,1757385038647,-152.918827,0.00013598,2]
[384405283,1757385038659,-818.799708,0.00013598,2]
[384405284,1757385038670,-818.799708,0.00013598,2]
[384405285,1757385038680,-818.799708,0.00013598,2]
[384405286,1757385038689,-818.799708,0.00013598,2]
[384405287,1757385038700,-1350.58353366,0.00013598,2]
[384405288,1757385038712,-818.799708,0.00013598,2]
[384405289,1757385038722,-818.799708,0.00013598,2]
[384405290,1757385038732,-818.799708,0.00013598,2]
[384405291,1757385038742,-818.799708,0.00013598,2]
[384405292,1757385038750,-818.799708,0.00013598,2]
[384405293,1757385038759,-818.799708,0.00013598,2]
[384405294,1757385038768,-818.799708,0.00013598,2]
[384405295,1757385038778,-818.799708,0.00013598,2]
[384405296,1757385038787,-818.79970752,0.00013598,2]
[384405297,1757385038796,-16908.28029598,0.00013598,2]
[384405298,1757385038805,-43594.72835435,0.00013598,2]
[384405299,1757385038815,-1970.37895376,0.00013603,2]
[384405300,1757385038824,-151.0,0.00013605,2]
[384405301,1757385038834,-151.0,0.00013605,2]
[384405302,1757385038844,-151.0,0.00013605,2]
[384405303,1757385038855,-151.0,0.00013605,2]
[384405304,1757385038864,-151.0,0.00013605,2]
[384405305,1757385038874,-375.859077,0.00013605,2]
[384405306,1757385038883,-151.0,0.00013605,2]
[384405307,1757385038894,-375.859077,0.00013605,2]
[384405308,1757385038903,-375.859077,0.00013605,2]
[384405309,1757385038912,-375.859077,0.00013605,2]
[384405310,1757385038922,-704.979878,0.00013605,2]
[384405311,1757385038931,-704.979878,0.00013605,2]
[384405312,1757385038940,-704.979878,0.00013605,2]
[384405313,1757385038949,-704.979878,0.00013605,2]
[384405314,1757385038959,-151.0,0.00013605,2]
[384405315,1757385038968,-151.0,0.00013605,2]
[384405316,1757385038977,-151.0,0.00013605,2]
[384405317,1757385038986,-151.0,0.00013605,2]
[384405318,1757385038996,-151.0,0.00013605,2]
[384405319,1757385039005,-153.358241,0.00013605,2]
[384405320,1757385039015,-1116.218703,0.00013605,2]
[384405321,1757385039024,-1116.218703,0.00013605,2]
[384405322,1757385039032,-1116.218703,0.00013605,2]
[384405323,1757385039041,-1116.218703,0.00013605,2]
[384405324,1757385039051,-151.0,0.00013605,2]
[384405325,1757385039062,-154.251042,0.00013605,2]
[384405326,1757385039072,-327.868957,0.00013605,2]
[384405327,1757385039081,-327.868957,0.00013605,2]
[384405328,1757385039091,-327.868957,0.00013605,2]
[384405329,1757385039100,-327.868957,0.00013605,2]
[384405330,1757385039110,-280.173572,0.00013605,2]
[384405331,1757385039119,-280.173572,0.00013605,2]
[384405332,1757385039130,-151.0,0.00013605,2]
[384405333,1757385039142,-280.173572,0.00013605,2]
[384405334,1757385039153,-151.0,0.00013605,2]
[384405335,1757385039164,-280.173572,0.00013605,2]
[384405336,1757385039174,-259.031222,0.00013605,2]
[384405337,1757385039184,-151.0,0.00013605,2]
[384405338,1757385039194,-1000.0,0.00013606,2]
[384405340,1757385039203,-1000.0,0.00013606,2]
[384405342,1757385039213,-151.0,0.00013606,2]
[384405344,1757385039222,-1000.0,0.00013606,2]
[384405345,1757385039231,-151.0,0.00013606,2]
[384405346,1757385039241,-151.0,0.00013606,2]
[384405347,1757385039250,-246.06910193,0.00013606,2]
[384405348,1757385039259,-1000.0,0.00013606,2]
[384405349,1757385039269,-151.0,0.00013606,2]
[384405350,1757385039279,-170.05616253,0.00013606,2]
[384405351,1757385039288,-151.0,0.00013606,2]
[384405352,1757385039298,-1000.0,0.00013606,2]
[384405353,1757385039307,-151.0,0.00013606,2]
[384405354,1757385039316,-151.62745434,0.00013606,2]
[384405355,1757385039325,-151.0,0.00013606,2]
[384405356,1757385039335,-151.0,0.00013606,2]
[384405357,1757385039344,-1000.0,0.00013606,2]
[384405358,1757385039354,-151.0,0.00013606,2]
[384405360,1757385039363,-300.11116599,0.00013606,2]
[384405361,1757385039372,-1000.0,0.00013606,2]
[384405362,1757385039382,-151.0,0.00013606,2]
[384405363,1757385039393,-1000.0,0.00013606,2]
[384405364,1757385039402,-151.0,0.00013606,2]
[384405365,1757385039412,-1145.9850186,0.00013606,2]
[384405366,1757385039421,-151.0,0.00013606,2]
[384405367,1757385039430,-151.0,0.00013606,2]
[384405368,1757385039440,-215.24533376,0.00013606,2]
[384405369,1757385039449,-151.19246068,0.00013606,2]
[384405370,1757385039459,-1000.0,0.00013606,2]
[384405371,1757385039469,-1038.75241903,0.00013606,2]
[384405372,1757385039478,-166.654293,0.00013606,2]
[384405373,1757385039487,-151.0,0.00013606,2]
[384405374,1757385039499,-151.0,0.00013606,2]
[384405375,1757385039648,-208.126077,0.00013606,2]
[384405376,1757385039658,-151.0,0.00013606,2]
[384405377,1757385039669,-151.0,0.00013606,2]
[384405378,1757385039679,-151.0,0.00013606,2]
[384405379,1757385039689,-151.0,0.00013606,2]
[384405380,1757385039698,-375.859077,0.00013606,2]
[384405381,1757385039708,-151.0,0.00013606,2]
[384405382,1757385039718,-375.859077,0.00013606,2]
[384405383,1757385039727,-151.0,0.00013606,2]
[384405384,1757385039737,-375.859077,0.00013606,2]
[384405385,1757385039746,-375.859077,0.00013606,2]
[384405386,1757385039756,-375.859077,0.00013606,2]
[384405387,1757385039765,-375.859077,0.00013606,2]
[384405388,1757385039775,-375.859077,0.00013606,2]
[384405389,1757385039784,-375.859077,0.00013606,2]
[384405390,1757385039794,-704.979878,0.00013606,2]
[384405391,1757385039804,-704.979878,0.00013606,2]
[384405392,1757385039813,-704.979878,0.00013606,2]
[384405393,1757385039822,-704.979878,0.00013606,2]
[384405394,1757385039832,-704.979878,0.00013606,2]
[384405395,1757385039841,-704.979878,0.00013606,2]
[384405396,1757385039851,-704.979878,0.00013606,2]
[384405397,1757385039861,-704.979878,0.00013606,2]
[384405398,1757385039872,-151.0,0.00013606,2]
[384405399,1757385039883,-151.0,0.00013606,2]
[384405400,1757385039894,-151.0,0.00013606,2]
[384405401,1757385039904,-151.0,0.00013606,2]
[384405402,1757385039916,-151.0,0.00013606,2]
[384405403,1757385039926,-151.0,0.00013606,2]
[384405404,1757385039936,-151.0,0.00013606,2]
[384405405,1757385039946,-151.0,0.00013606,2]
[384405406,1757385039955,-151.0,0.00013606,2]
[384405407,1757385039964,-267.899332,0.00013606,2]
[384405408,1757385039973,-1116.218703,0.00013606,2]
[384405409,1757385039982,-1116.218703,0.00013606,2]
[384405410,1757385039992,-1116.218703,0.00013606,2]
[384405411,1757385040001,-1116.218703,0.00013606,2]
[384405412,1757385040011,-1116.218703,0.00013606,2]
[384405413,1757385040021,-1116.218703,0.00013606,2]
[384405414,1757385040030,-1116.218703,0.00013606,2]
[384405415,1757385040039,-1116.218703,0.00013606,2]
[384405416,1757385040048,-151.0,0.00013606,2]
[384405417,1757385040058,-327.868957,0.00013606,2]
[384405418,1757385040067,-327.868957,0.00013606,2]
[384405419,1757385040077,-327.868957,0.00013606,2]
[384405420,1757385040087,-327.868962,0.00013606,2]
[384405421,1757385040096,-280.173572,0.00013606,2]
[384405422,1757385040106,-280.173572,0.00013606,2]
[384405423,1757385040115,-151.0,0.00013606,2]
[384405424,1757385040124,-280.173572,0.00013606,2]
[384405425,1757385040134,-151.0,0.00013606,2]
[384405426,1757385040144,-280.173579,0.00013606,2]
[384405427,1757385040153,-151.0,0.00013606,2]
[384405428,1757385040164,-423.53274892,0.00013613,2]
[384405429,1757385040173,-500.0,0.00013614,2]
[384405430,1757385040182,-4181.4001535,0.00013614,2]
[384405431,1757385040191,-7852.887802,0.00013614,2]
[384405432,1757385040201,-151.0,0.00013614,2]
[384405433,1757385040210,-151.0,0.00013614,2]
[384405434,1757385040220,-151.0,0.00013614,2]
[384405435,1757385040230,-151.0,0.00013614,2]
[384405436,1757385040239,-173.367995,0.00013614,2]
[384405437,1757385040249,-158.749774,0.00013614,2]
[384405438,1757385040259,-3125.3572576,0.00013614,2]
[384405439,1757385040268,-151.0,0.00013614,2]
[384405440,1757385040278,-151.0,0.00013614,2]
[384405441,1757385040287,-151.0,0.00013614,2]
[384405442,1757385040297,-375.859077,0.00013614,2]
[384405443,1757385040306,-301.631984,0.00013614,2]
[384405444,1757385040315,-375.859077,0.00013614,2]
[384405445,1757385040325,-375.859077,0.00013614,2]
[384405446,1757385040335,-375.85908,0.00013614,2]
[384405447,1757385040345,-704.979878,0.00013614,2]
[384405448,1757385040355,-704.979878,0.00013614,2]
[384405449,1757385040364,-704.979878,0.00013614,2]
[384405450,1757385040373,-704.979882,0.00013614,2]
[384405451,1757385040383,-151.0,0.00013614,2]
[384405452,1757385040393,-151.0,0.00013614,2]
[384405453,1757385040403,-151.0,0.00013614,2]
[384405454,1757385040413,-151.0,0.00013614,2]
[384405455,1757385040424,-1116.218703,0.00013614,2]
[384405456,1757385040434,-1116.218703,0.00013614,2]
[384405457,1757385040443,-1116.218703,0.00013614,2]
[384405458,1757385040453,-3848.8728205,0.00013614,2]
[384405459,1757385040462,-1116.218697,0.00013614,2]
[384405460,1757385040472,-151.0,0.00013621,2]
[384405461,1757385040481,-151.0,0.00013622,2]
[384405462,1757385040491,-3546.77100875,0.00013622,2]
[384405463,1757385040500,-2105.41764886,0.00013645,2]
[384405464,1757385040510,-1970.37895376,0.00013652,2]
[384405465,1757385040519,-1006.97,0.00013671,2]
[384405466,1757385040528,-634.0,0.00013671,2]
[384405467,1757385040537,-2154.0,0.00013671,2]
[384405468,1757385040547,-409.0,0.00013671,2]
[384405469,1757385040558,-429.6,0.00013671,2]
[384405470,1757385040567,-160.0,0.00013685,2]
[384405471,1757385040576,-417.15472785,0.00013685,2]
[384405472,1757385040589,-160.0,0.00013685,2]
[384405473,1757385040598,-203.28455737,0.00013685,2]
[384405474,1757385040608,-233.05759179,0.00013685,2]
[384405475,1757385040620,-846.80158213,0.00013685,2]
[384405476,1757385040630,-217.65034598,0.00013685,2]
[384405477,1757385040640,-160.0,0.00013685,2]
[384405478,1757385040650,-530.79566296,0.00013685,2]
[384405479,1757385040661,-300.0,0.00013691,2]
[384405480,1757385040671,-300.0,0.00013691,2]
[384405481,1757385040682,-300.0,0.00013691,2]
[384405482,1757385040691,-300.0,0.00013691,2]
[384405483,1757385040703,-300.0,0.00013691,2]
[384405484,1757385040713,-300.0,0.00013691,2]
[384405485,1757385040724,-300.0,0.00013691,2]
[384405486,1757385040734,-300.0,0.00013691,2]
[384405487,1757385040743,-300.0,0.00013691,2]
[384405488,1757385040752,-300.0,0.00013691,2]
[384405489,1757385040761,-300.0,0.00013691,2]
[384405490,1757385040771,-300.0,0.00013691,2]
[384405491,1757385040781,-300.0,0.00013691,2]
[384405492,1757385040790,-300.0,0.00013691,2]
[384405493,1757385040799,-300.0,0.00013691,2]
[384405494,1757385040810,-801.906,0.00013697,2]
[384405495,1757385040819,-157.0,0.00013698,2]
[384405496,1757385040828,-487.40281628,0.00013698,2]
[384405497,1757385040838,-480.0,0.00013698,2]
[384405498,1757385040847,-480.0,0.00013698,2]
[384405499,1757385040857,-486.17195976,0.00013698,2]
[384405500,1757385040866,-480.0,0.00013698,2]
[384405501,1757385040876,-480.0,0.00013698,2]
[384405502,1757385040885,-480.0,0.00013698,2]
[384405503,1757385040896,-480.0,0.00013698,2]
[384405504,1757385040907,-480.0,0.00013698,2]
[384405505,1757385040917,-480.0,0.00013698,2]
[384405506,1757385040927,-482.09967061,0.00013698,2]
[384405507,1757385040937,-480.0,0.00013698,2]
[384405508,1757385040947,-480.0,0.00013698,2]
[384405509,1757385040956,-611.34365352,0.00013698,2]
[384405510,1757385040965,-459.74423299,0.00013698,2]
[384405511,1757385040975,-483.36032202,0.00013698,2]
[384405512,1757385040984,-538.68076664,0.00013698,2]
[384405513,1757385040993,-480.0,0.00013698,2]
[384405514,1757385041002,-484.10761524,0.00013698,2]
[384405515,1757385041011,-480.0,0.00013698,2]
[384405516,1757385041022,-480.0,0.00013698,2]
[384405517,1757385041031,-180.04860253,0.00013698,2]
[384405518,1757385041040,-174.85642021,0.00013698,2]
[384405519,1757385041049,-157.0,0.00013698,2]
[384405520,1757385041059,-475.78448864,0.00013698,2]
[384405521,1757385041069,-480.0,0.00013698,2]
[384405522,1757385041078,-480.0,0.00013698,2]
[384405523,1757385041089,-483.19894471,0.00013698,2]
[384405524,1757385041098,-255.89078452,0.00013698,2]
[384405525,1757385041107,-484.77017467,0.00013698,2]
[384405526,1757385041118,-383.31870748,0.00013698,2]
[384405527,1757385041128,-480.0,0.00013698,2]
[384405528,1757385041141,-482.46105402,0.00013698,2]
[384405529,1757385041150,-480.0,0.00013698,2]
[384405530,1757385041160,-483.01380744,0.00013698,2]
[384405531,1757385041170,-481.48357866,0.00013698,2]
[384405532,1757385041179,-486.25374957,0.00013698,2]
[384405533,1757385041188,-484.33505067,0.00013698,2]
[384405534,1757385041198,-482.57335173,0.00013698,2]
[384405535,1757385041210,-482.81259075,0.00013698,2]
[384405536,1757385041220,-482.18636402,0.00013698,2]
[384405537,1757385041229,-482.56644901,0.00013698,2]
[384405538,1757385041239,-481.97,0.00013698,2]
[384405539,1757385041249,-481.49465356,0.00013698,2]
[384405540,1757385041260,-483.01136861,0.00013698,2]
[384405541,1757385041270,-480.0,0.00013698,2]
[384405542,1757385041279,-480.0,0.00013698,2]
[384405543,1757385041289,-480.0,0.00013698,2]
[384405544,1757385041299,-480.0,0.00013698,2]
[384405545,1757385041308,-482.16581559,0.00013698,2]
[384405546,1757385041318,-482.25775856,0.00013698,2]
[384405547,1757385041328,-482.21690197,0.00013698,2]
[384405548,1757385041338,-480.0,0.00013698,2]
[384405549,1757385041347,-480.0,0.00013698,2]
[384405550,1757385041357,-481.60946274,0.00013698,2]
[384405551,1757385041366,-482.03189724,0.00013698,2]
[384405552,1757385041375,-482.63904112,0.00013698,2]
[384405553,1757385041385,-480.0,0.00013698,2]
[384405554,1757385041395,-480.0,0.00013698,2]
[384405555,1757385041404,-491.84,0.00013698,2]
[384405556,1757385041414,-480.0,0.00013698,2]
[384405557,1757385041425,-480.0,0.00013698,2]
[384405558,1757385041435,-480.0,0.00013698,2]
[384405559,1757385041445,-480.0,0.00013698,2]
[384405560,1757385041455,-480.69191435,0.00013698,2]
[384405561,1757385041465,-480.0,0.00013698,2]
[384405562,1757385041475,-480.0,0.00013698,2]
[384405563,1757385041484,-241.23055391,0.00013698,2]
[384405564,1757385041494,-480.0,0.00013698,2]
[384405565,1757385041503,-480.0,0.00013698,2]
[384405566,1757385041513,-486.49444762,0.00013698,2]
[384405567,1757385041523,-480.0,0.00013698,2]
[384405568,1757385041532,-458.62316349,0.00013698,2]
[384405569,1757385041542,-480.58704191,0.00013698,2]
[384405570,1757385041551,-480.0,0.00013698,2]
[384405571,1757385041561,-484.92590101,0.00013698,2]
[384405572,1757385041571,-480.0,0.00013698,2]
[384405573,1757385041581,-710.23,0.00013698,2]
[384405574,1757385041594,-484.55848299,0.00013698,2]
[384405575,1757385041603,-483.12774491,0.00013698,2]
[384405576,1757385041613,-481.44714224,0.00013698,2]
[384405577,1757385041623,-484.32043581,0.00013698,2]
[384405578,1757385041632,-480.0,0.00013698,2]
[384405579,1757385041641,-480.0,0.00013698,2]
[384405580,1757385041650,-480.0,0.00013698,2]
[384405581,1757385041661,-480.0,0.00013698,2]
[384405582,1757385041670,-480.0,0.00013698,2]
[384405583,1757385041680,-483.24249566,0.00013698,2]
[384405584,1757385041690,-487.8783508,0.00013698,2]
[384405585,1757385041699,-628.33,0.00013698,2]
[384405586,1757385041709,-478.37440515,0.00013698,2]
[384405587,1757385041719,-480.0,0.00013698,2]
[384405588,1757385041729,-482.70203474,0.00013698,2]
[384405589,1757385041739,-480.0,0.00013698,2]
[384405590,1757385041748,-482.44746094,0.00013698,2]
[384405591,1757385041757,-481.94849287,0.00013698,2]
[384405592,1757385041767,-480.0,0.00013698,2]
[384405593,1757385041777,-484.7338841,0.00013698,2]
[384405594,1757385041787,-480.0,0.00013698,2]
[384405595,1757385041796,-482.72145109,0.00013698,2]
[384405596,1757385041806,-480.5428694,0.00013698,2]
[384405597,1757385041815,-483.7641558,0.00013698,2]
[384405598,1757385041824,-480.0,0.00013698,2]
[384405599,1757385041834,-262.78071284,0.00013698,2]
[384405600,1757385041843,-480.0,0.00013698,2]
[384405601,1757385041852,-485.32755929,0.00013698,2]
[384405602,1757385041861,-480.0,0.00013698,2]
[384405603,1757385041871,-787.43,0.00013698,2]
[384405604,1757385041880,-488.12712704,0.00013698,2]
[384405605,1757385041889,-483.39654905,0.00013698,2]
[384405606,1757385041899,-480.0,0.00013698,2]
[384405607,1757385041909,-480.0,0.00013698,2]
[384405608,1757385041918,-480.0,0.00013698,2]
[384405609,1757385041927,-480.0,0.00013698,2]
[384405610,1757385041936,-289.39703927,0.00013698,2]
[384405611,1757385041946,-480.0,0.00013698,2]
[384405612,1757385041956,-480.0,0.00013698,2]
[384405613,1757385041965,-480.0,0.00013698,2]
[384405614,1757385041975,-484.08745227,0.00013698,2]
[384405615,1757385041984,-480.0,0.00013698,2]
[384405616,1757385041994,-482.60641857,0.00013698,2]
[384405617,1757385042003,-480.0,0.00013698,2]
[384405618,1757385042012,-485.07605126,0.00013698,2]
[384405619,1757385042022,-480.0,0.00013698,2]
[384405620,1757385042032,-482.80788108,0.00013698,2]
[384405621,1757385042041,-482.53494933,0.00013698,2]
[384405622,1757385042051,-500.0,0.00013698,2]
[384405623,1757385042060,-500.0,0.00013698,2]
[384405624,1757385042070,-500.0,0.00013698,2]
[384405625,1757385042079,-500.0,0.00013698,2]
[384405626,1757385042088,-500.0,0.00013698,2]
[384405627,1757385042098,-500.0,0.00013698,2]
[384405628,1757385042107,-537.44165014,0.00013698,2]
[384405629,1757385042117,-481.95998631,0.00013698,2]
[384405630,1757385042126,-480.0,0.00013698,2]
[384405631,1757385042136,-500.53907778,0.00013698,2]
[384405632,1757385042145,-483.11789433,0.00013698,2]
[384405633,1757385042155,-480.0,0.00013698,2]
[384405634,1757385042165,-541.0,0.00013698,2]
[384405635,1757385042174,-483.47349055,0.00013698,2]
[384405636,1757385042184,-703.0,0.00013698,2]
[384405637,1757385042194,-486.30975409,0.00013698,2]
[384405639,1757385042205,-486.09138238,0.00013698,2]
[384405641,1757385042215,-488.44096721,0.00013698,2]
[384405643,1757385042224,-488.66441413,0.00013698,2]
[384405645,1757385042234,-480.0,0.00013698,2]
[384405647,1757385042244,-600.86658604,0.00013698,2]
[384405648,1757385042254,-486.60764504,0.00013698,2]
[384405650,1757385042263,-483.80790252,0.00013698,2]
[384405652,1757385042274,-482.12983674,0.00013698,2]
[384405653,1757385042284,-480.0,0.00013698,2]
[384405654,1757385042294,-484.08847816,0.00013698,2]
[384405655,1757385042304,-480.0,0.00013698,2]
[384405656,1757385042313,-480.0,0.00013698,2]
[384405657,1757385042323,-486.59698688,0.00013698,2]
[384405658,1757385042332,-480.0,0.00013698,2]
[384405659,1757385042342,-485.03416015,0.00013698,2]
[384405660,1757385042351,-163.73518695,0.00013698,2]
[384405661,1757385042361,-493.97466047,0.00013698,2]
[384405662,1757385042371,-480.0,0.00013698,2]
[384405663,1757385042381,-487.39087611,0.00013698,2]
[384405664,1757385042392,-486.63788918,0.00013698,2]
[384405665,1757385042402,-482.3267889,0.00013698,2]
[384405666,1757385042412,-489.55160594,0.00013698,2]
[384405668,1757385042421,-480.0,0.00013698,2]
[384405670,1757385042431,-583.65,0.00013698,2]
[384405671,1757385042441,-480.0,0.00013698,2]
[384405672,1757385042451,-433.04446702,0.00013698,2]
[384405673,1757385042460,-482.66532716,0.00013698,2]
[384405674,1757385042470,-480.0,0.00013698,2]
[384405675,1757385042480,-501.35900831,0.00013698,2]
[384405676,1757385042489,-481.93222149,0.00013698,2]
[384405677,1757385042499,-646.39,0.00013698,2]
[384405678,1757385042509,-482.49412254,0.00013698,2]
[384405679,1757385042634,-493.46126893,0.00013698,2]
[384405680,1757385042644,-482.5861,0.00013698,2]
[384405681,1757385042655,-480.0,0.00013698,2]
[384405682,1757385042664,-520.59,0.00013698,2]
[384405683,1757385042675,-399.83585063,0.00013698,2]
[384405684,1757385042684,-483.03910551,0.00013698,2]
[384405685,1757385042694,-571.46243289,0.00013698,2]
[384405686,1757385042703,-480.0,0.00013698,2]
[384405687,1757385042712,-483.2680125,0.00013698,2]
[384405688,1757385042723,-480.0,0.00013698,2]
[384405689,1757385042732,-481.30099665,0.00013698,2]
[384405690,1757385042741,-492.1758059,0.00013698,2]
[384405691,1757385042751,-480.0,0.00013698,2]
[384405692,1757385042760,-480.0,0.00013698,2]
[384405693,1757385042770,-480.0,0.00013698,2]
[384405694,1757385042779,-480.0,0.00013698,2]
[384405695,1757385042788,-480.0,0.00013698,2]
[384405696,1757385042797,-480.0,0.00013698,2]
[384405697,1757385042807,-483.99356591,0.00013698,2]
[384405698,1757385042816,-480.0,0.00013698,2]
[384405699,1757385042825,-486.16179208,0.00013698,2]
[384405700,1757385042834,-483.22985917,0.00013698,2]
[384405701,1757385042843,-480.0,0.00013698,2]
[384405702,1757385042852,-482.87922254,0.00013698,2]
[384405703,1757385042862,-485.57307372,0.00013698,2]
[384405704,1757385042871,-485.42015146,0.00013698,2]
[384405705,1757385042880,-480.0,0.00013698,2]
[384405706,1757385042890,-480.0,0.00013698,2]
[384405707,1757385042899,-188.45139476,0.00013698,2]
[384405708,1757385042909,-480.0,0.00013698,2]
[384405709,1757385042918,-480.0,0.00013698,2]
[384405710,1757385042927,-480.0,0.00013698,2]
[384405711,1757385042937,-484.5452615,0.00013698,2]
[384405712,1757385042947,-480.0,0.00013698,2]
[384405714,1757385042958,-286.82436286,0.00013698,2]
[384405715,1757385042969,-534.55,0.00013698,2]
[384405716,1757385042980,-480.0,0.00013698,2]
[384405717,1757385042990,-483.89334332,0.00013698,2]
[384405718,1757385043001,-480.0,0.00013698,2]
[384405719,1757385043012,-480.0,0.00013698,2]
[384405720,1757385043022,-480.0,0.00013698,2]
[384405721,1757385043033,-480.0,0.00013698,2]
[384405722,1757385043043,-480.0,0.00013698,2]
[384405723,1757385043053,-157.0,0.00013698,2]
[384405724,1757385043065,-500.0,0.00013698,2]
[384405725,1757385043076,-485.09664892,0.00013698,2]
[384405726,1757385043086,-157.0,0.00013698,2]
[384405727,1757385043095,-483.16448451,0.00013698,2]
[384405728,1757385043106,-302.47220801,0.00013698,2]
[384405729,1757385043116,-157.0,0.00013698,2]
[384405730,1757385043128,-348.35983084,0.00013698,2]
[384405731,1757385043138,-480.0,0.00013698,2]
[384405732,1757385043148,-540.14,0.00013698,2]
[384405733,1757385043159,-489.61290006,0.00013698,2]
[384405734,1757385043170,-486.67920616,0.00013698,2]
[384405735,1757385043181,-506.84,0.00013698,2]
[384405736,1757385043190,-560.04,0.00013698,2]
[384405737,1757385043199,-480.0,0.00013698,2]
[384405738,1757385043210,-480.0,0.00013698,2]
[384405739,1757385043222,-1000.0,0.00013698,2]
[384405740,1757385043232,-1000.0,0.00013698,2]
[384405741,1757385043242,-1000.0,0.00013698,2]
[384405742,1757385043251,-1000.0,0.00013698,2]
[384405743,1757385043263,-1018.93188068,0.00013698,2]
[384405744,1757385043272,-480.0,0.00013698,2]
[384405745,1757385043283,-481.15169618,0.00013698,2]